fUST/lending_fUST_20250130
["ID","MTS","AMOUNT","RATE_DAILY","PERIOD"]
[350929654,1738210247855,-151.0,0.00016986,2]
[350929655,1738210247865,-500.0,0.00016986,2]
[350929656,1738210247878,-992.68,0.00016986,2]
[350929657,1738210247888,-151.0,0.00016986,2]
[350929658,1738210247898,-802.35,0.00016986,2]
[350929659,1738210247908,-260.794302,0.00016986,2]
[350929660,1738210247918,-260.794302,0.00016986,2]
[350929661,1738210247929,-192.125145,0.00016986,2]
[350929662,1738210247938,-500.0,0.00016986,2]
[350929663,1738210247948,-1291.46,0.00016986,2]
[350929664,1738210247957,-151.0,0.00016986,2]
[350929665,1738210247967,-500.0,0.00016986,2]
[350929666,1738210247976,-500.0,0.00016986,2]
[350929667,1738210247985,-1574.25,0.00016986,2]
[350929668,1738210247995,-874.35,0.00016986,2]
[350929669,1738210248006,-17684.82,0.00016986,2]
[350929670,1738210248015,-632.89,0.00016986,2]
[350929671,1738210248024,-1078.96,0.00016986,2]
[350929672,1738210248039,-500.0,0.00016986,2]
[350929673,1738210248048,-151.0,0.00016986,2]
[350929674,1738210248058,-694.9,0.00016986,2]
[350929675,1738210248067,-500.0,0.00016986,2]
[350929676,1738210248077,-1010.19,0.00016986,2]
[350929677,1738210248087,-624.71,0.00016986,2]
[350929678,1738210248097,-1423.86,0.00016986,2]
[350929679,1738210248106,-151.0,0.00016986,2]
[350929680,1738210248115,-151.0,0.00016986,2]
[350929681,1738210248125,-2116.99,0.00016986,2]
[350929682,1738210248134,-244.944083,0.00016986,2]
[350929683,1738210248145,-244.944083,0.00016986,2]
[350929684,1738210248154,-774.41,0.00016986,2]
[350929685,1738210248164,-610.33,0.00016986,2]
[350929686,1738210248174,-592.89,0.00016986,2]
[350929687,1738210248184,-295.247941,0.00016986,2]
[350929688,1738210248194,-859.4,0.00016986,2]
[350929689,1738210248204,-1728.03,0.00016986,2]
[350929690,1738210248213,-177.666734,0.00016986,2]
[350929691,1738210248223,-177.666734,0.00016986,2]
[350929692,1738210248232,-500.0,0.00016986,2]
[350929693,1738210248241,-875.55,0.00016986,2]
[350929694,1738210248251,-1919.32,0.00016986,2]
[350929695,1738210248260,-151.0,0.00016986,2]
[350929696,1738210248269,-801.55,0.00016986,2]
[350929697,1738210248278,-1234.02,0.00016986,2]
[350929698,1738210248288,-857.44,0.00016986,2]
[350929699,1738210248299,-612.81,0.00016986,2]
[350929700,1738210248309,-6279.25,0.00016986,2]
[350929701,1738210248318,-280.067604,0.00016986,2]
[350929702,1738210248328,-151.0,0.00016986,2]
[350929703,1738210248337,-280.067604,0.00016986,2]
[350929704,1738210248347,-997.61,0.00016986,2]
[350929705,1738210248357,-1374.44,0.00016986,2]
[350929706,1738210248367,-182.453812,0.00016986,2]
[350929707,1738210248376,-500.0,0.00016986,2]
[350929708,1738210248386,-2724.35,0.00016986,2]
[350929709,1738210248395,-3094.25,0.00016986,2]
[350929710,1738210248404,-500.0,0.00016986,2]
[350929711,1738210248413,-4078.64,0.00016986,2]
[350929712,1738210248422,-945.32,0.00016986,2]
[350929713,1738210248432,-151.0,0.00016986,2]
[350929714,1738210248442,-500.0,0.00016986,2]
[350929715,1738210248451,-1895.12,0.00016986,2]
[350929716,1738210248460,-500.0,0.00016986,2]
[350929717,1738210248470,-35341.76571772,0.00017,2]
[350929719,1738210331112,300.0,0.00014166,2]
[350929721,1738210385001,562.757,0.00015101,2]
[350929727,1738210440827,500.0,0.00015101,2]
[350929728,1738210444300,3048.86771235,0.00015101,2]
[350929732,1738210570443,342.927102,0.00013973,2]
[350929734,1738210629377,5000.0,0.00015101,2]
[350929737,1738210739887,329.054624,0.00013699,2]
[350929740,1738210886535,503.0,0.00015101,2]
[350929753,1738211142092,-316.919678,0.00015432,2]
[350929754,1738211142115,-6578.2095039,0.00015751,2]
[350929762,1738211309742,162.69249116,0.00015,2]
[350929764,1738211317857,424.97193917,0.0001,7]
[350929765,1738211321307,4490.63058744,0.00015,2]
[350929767,1738211323349,21726.19706782,0.00013,2]
[350929831,1738211432029,-1055.37,0.00015365,2]
[350929832,1738211432087,-3742.4396145,0.00015365,2]
[350929833,1738211432097,-158.459839,0.00015447,2]
[350929834,1738211432107,-4307.85708874,0.000155,2]
[350929835,1738211432116,-154.891,0.0001615,2]
[350929836,1738211432126,-484.54709488,0.00016213,2]
[350929837,1738211432136,-636.52727223,0.00016337,2]
[350929838,1738211432146,-300.0,0.00016436,2]
[350929839,1738211432156,-500.0,0.00016437,2]
[350929840,1738211432165,-500.0,0.00016437,2]
[350929841,1738211432174,-500.0,0.00016437,2]
[350929842,1738211432183,-500.0,0.00016437,2]
[350929843,1738211432194,-500.0,0.00016437,2]
[350929844,1738211432204,-483.54762109,0.00016437,2]
[350929845,1738211432213,-154.75715385,0.00016437,2]
[350929847,1738211432224,-314.54692683,0.00016437,2]
[350929959,1738211437742,-30.69591932,0.00016437,2]
[350929960,1738211437751,-500.0,0.00016437,2]
[350929961,1738211437760,-500.0,0.00016437,2]
[350929962,1738211437770,-500.0,0.00016437,2]
[350929963,1738211437779,-500.0,0.00016437,2]
[350929964,1738211437788,-500.0,0.00016437,2]
[350929965,1738211437797,-500.0,0.00016437,2]
[350929966,1738211437806,-500.0,0.00016437,2]
[350929967,1738211437816,-500.0,0.00016437,2]
[350929968,1738211437825,-500.0,0.00016437,2]
[350929969,1738211437834,-500.0,0.00016437,2]
[350929970,1738211437843,-76.04602751,0.00016437,2]
[350929971,1738211437854,-423.95397249,0.00016437,2]
[350929972,1738211437863,-500.0,0.00016437,2]
[350929973,1738211437872,-500.0,0.00016437,2]
[350929974,1738211437882,-500.0,0.00016437,2]
[350929975,1738211437892,-500.0,0.00016437,2]
[350929976,1738211437902,-500.0,0.00016437,2]
[350929977,1738211437914,-500.0,0.00016437,2]
[350929978,1738211437926,-500.0,0.00016437,2]
[350929979,1738211437936,-500.0,0.00016437,2]
[350929980,1738211437947,-500.0,0.00016437,2]
[350929981,1738211437957,-554.51598574,0.00016437,2]
[350929982,1738211437967,-500.0,0.00016437,2]
[350929983,1738211437976,-500.0,0.00016437,2]
[350929985,1738211437985,-500.0,0.00016437,2]
[350929987,1738211437995,-500.0,0.00016437,2]
[350929988,1738211438003,-500.0,0.00016437,2]
[350929989,1738211438013,-500.0,0.00016437,2]
[350929990,1738211438022,-500.0,0.00016437,2]
[350929991,1738211438031,-500.0,0.00016437,2]
[350929992,1738211438040,-500.0,0.00016437,2]
[350929993,1738211438049,-500.0,0.00016437,2]
[350929994,1738211438059,-500.0,0.00016437,2]
[350929995,1738211438073,-500.0,0.00016437,2]
[350929996,1738211438082,-500.0,0.00016437,2]
[350929997,1738211438091,-500.0,0.00016437,2]
[350929999,1738211438100,-500.0,0.00016437,2]
[350930001,1738211438110,-500.0,0.00016437,2]
[350930003,1738211438119,-500.0,0.00016437,2]
[350930004,1738211438128,-17892.82596618,0.00016437,2]
[350930416,1738211781011,325.780746,0.00013973,2]
[350930418,1738211809140,263.243699,0.00013699,2]
[350930430,1738212348118,-437.51726625,0.00015265,2]
[350930431,1738212348138,-158.459839,0.00015393,2]
[350930432,1738212348158,-154.829,0.0001615,2]
[350930433,1738212348177,-8.92876957,0.00016336,2]
[350930730,1738212635876,-338.83651524,0.00016298,2]
[350930731,1738212635886,-3.59015293,0.00016336,2]
[350930732,1738212635933,-628.1179997,0.00016336,2]
[350930769,1738212638002,-84.41498609,0.00016336,2]
[350930782,1738212640070,-2499.91327514,0.00016336,2]
[350930783,1738212640080,-21.42404986,0.00016337,2]
[350930784,1738212640128,-535.53731335,0.00016337,2]
[350930785,1738212640137,-181.309,0.00016338,2]
[350930786,1738212640146,-165.06536422,0.00016338,2]
[350930787,1738212640156,-300.0,0.00016436,2]
[350930788,1738212640165,-34.9973431,0.00016437,2]
[350930817,1738212642964,-1608.20949023,0.00016437,2]
[350930818,1738212643020,-8461.882841,0.00016437,2]
[350930819,1738212643350,-396.83755088,0.00016437,2]
[350930841,1738212724204,210.594959,0.00013699,2]
[350930845,1738213074953,321.019441,0.00013973,2]
[350930850,1738213137896,300.0,0.00015101,2]
[350930853,1738213556467,168.475967,0.00013699,2]
[350930854,1738213557141,-300.0,0.00015363,2]
[350930855,1738213557163,-1321.67204304,0.00015364,2]
[350930938,1738213832396,-448.46367761,0.00015275,2]
[350930955,1738213832560,-2540.75397209,0.00015275,2]
[350930958,1738213832570,-300.0,0.00015363,2]
[350930961,1738213832580,-23578.32795696,0.00015364,2]
[350930964,1738213832590,-323.0749437,0.00015383,2]
[350930967,1738213832599,-159.21149623,0.00016185,2]
[350930969,1738213832609,-13245.59911628,0.00016219,2]
[350930971,1738213832618,-487.3411928,0.00016237,2]
[350930973,1738213832626,-606.9449249,0.00016337,2]
[350930975,1738213832636,-606.94492488,0.00016337,2]
[350930977,1738213832645,-606.94492488,0.00016338,2]
[350930979,1738213832655,-606.94492488,0.00016338,2]
[350930981,1738213832664,-226.51075474,0.00016338,2]
[350930983,1738213832674,-606.94492488,0.00016338,2]
[350930985,1738213832683,-3000.0,0.000164,2]
[350930987,1738213832693,-3000.0,0.0001641,2]
[350930989,1738213832702,-3608.915191,0.0001642,2]
[350930990,1738213832711,-151.0,0.00016428,2]
[350930992,1738213832720,-181.31018578,0.00016437,2]
[350930994,1738213832729,-176.05743068,0.00016437,2]
[350930996,1738213832739,-29226.64297598,0.00016437,2]
[350930998,1738213832748,-500.5,0.00016437,2]
[350931000,1738213832757,-500.4803573,0.00016437,2]
[350931002,1738213832766,-500.0,0.00016437,2]
[350931004,1738213832775,-500.0,0.00016437,2]
[350931006,1738213832785,-406.77903382,0.00016437,2]
[350931416,1738213838205,-93.22096618,0.00016437,2]
[350931417,1738213838215,-500.0,0.00016437,2]
[350931418,1738213838224,-500.0,0.00016437,2]
[350931419,1738213838234,-447.10977304,0.00016437,2]
[350931420,1738213838243,-430.71396662,0.00016437,2]
[350931421,1738213838254,-500.0,0.00016437,2]
[350931422,1738213838263,-500.0,0.00016437,2]
[350931423,1738213838272,-500.0,0.00016437,2]
[350931424,1738213838282,-500.0,0.00016437,2]
[350931425,1738213838292,-500.0,0.00016437,2]
[350931426,1738213838301,-500.0,0.00016437,2]
[350931427,1738213838311,-520.0,0.00016437,2]
[350931428,1738213838320,-500.0,0.00016437,2]
[350931429,1738213838330,-454.38847962,0.00016437,2]
[350931430,1738213838342,-45.61152038,0.00016437,2]
[350931431,1738213838352,-500.0,0.00016437,2]
[350931432,1738213838361,-376.60846767,0.00016437,2]
[350931433,1738213838371,-500.0,0.00016437,2]
[350931434,1738213838380,-500.0,0.00016437,2]
[350931435,1738213838389,-500.0,0.00016437,2]
[350931436,1738213838399,-500.0,0.00016437,2]
[350931437,1738213838408,-500.0,0.00016437,2]
[350931438,1738213838417,-500.0,0.00016437,2]
[350931439,1738213838427,-500.0,0.00016437,2]
[350931440,1738213838437,-359.01439946,0.00016437,2]
[350931441,1738213838447,-500.0,0.00016437,2]
[350931442,1738213838457,-500.0,0.00016437,2]
[350931443,1738213838466,-487.55957131,0.00016437,2]
[350931444,1738213838475,-280.06141619,0.00016437,2]
[350931445,1738213838484,-500.0,0.00016437,2]
[350931446,1738213838494,-500.0,0.00016437,2]
[350931447,1738213838503,-334.50246388,0.00016437,2]
[350931448,1738213838512,-515.86086026,0.00016437,2]
[350931449,1738213838521,-160.95157742,0.00016437,2]
[350931450,1738213838531,-651.47863631,0.00016438,2]
[350931451,1738213838541,-504.53405235,0.00016438,2]
[350931452,1738213838550,-451.53866585,0.00016438,2]
[350931453,1738213838560,-502.67284463,0.00016438,2]
[350931454,1738213838569,-500.0,0.00016438,2]
[350931455,1738213838579,-267.88529186,0.00016438,2]
[350931456,1738213838588,-502.21221722,0.00016438,2]
[350931457,1738213838597,-502.08023676,0.00016438,2]
[350931458,1738213838606,-615.29737058,0.00016438,2]
[350931459,1738213838615,-500.0,0.00016438,2]
[350931460,1738213838626,-505.47866563,0.00016438,2]
[350931461,1738213838635,-501.48511277,0.00016438,2]
[350931462,1738213838646,-500.56537875,0.00016438,2]
[350931463,1738213838656,-537.58267242,0.00016438,2]
[350931464,1738213838666,-437.65190029,0.00016438,2]
[350931465,1738213838676,-151.0,0.00016438,2]
[350931466,1738213838685,-151.0,0.00016438,2]
[350931467,1738213838694,-500.0,0.00016438,2]
[350931468,1738213838704,-500.0,0.00016438,2]
[350931469,1738213838714,-511.10169048,0.00016438,2]
[350931470,1738213838723,-505.33489805,0.00016438,2]
[350931471,1738213838732,-500.0,0.00016438,2]
[350931472,1738213838741,-503.85574557,0.00016438,2]
[350931473,1738213838750,-500.0,0.00016438,2]
[350931474,1738213838760,-502.02189696,0.00016438,2]
[350931475,1738213838769,-504.09733192,0.00016438,2]
[350931476,1738213838778,-500.0,0.00016438,2]
[350931477,1738213838788,-114.32642832,0.00016438,2]
[350931478,1738213838802,-385.67357168,0.00016438,2]
[350931479,1738213838811,-500.0,0.00016438,2]
[350931480,1738213838820,-425.29848555,0.00016438,2]
[350931481,1738213838832,-78.29816508,0.00016438,2]
[350931482,1738213838842,-151.0,0.00016438,2]
[350931483,1738213838853,-151.511679,0.00016438,2]
[350931484,1738213838862,-500.0,0.00016438,2]
[350931485,1738213838874,-501.87975495,0.00016438,2]
[350931486,1738213838884,-153.95049638,0.00016438,2]
[350931487,1738213838894,-502.91489795,0.00016438,2]
[350931488,1738213838903,-677.11934906,0.00016438,2]
[350931489,1738213838913,-500.0,0.00016438,2]
[350931490,1738213838922,-151.0,0.00016438,2]
[350931491,1738213838932,-520.04477375,0.00016438,2]
[350931492,1738213838941,-500.0,0.00016438,2]
[350931493,1738213838951,-503.62503703,0.00016438,2]
[350931494,1738213838960,-500.0,0.00016438,2]
[350931495,1738213838969,-515.70621144,0.00016438,2]
[350931496,1738213838979,-151.0,0.00016438,2]
[350931497,1738213838988,-151.0,0.00016438,2]
[350931498,1738213838997,-500.0,0.00016438,2]
[350931499,1738213839006,-151.0,0.00016438,2]
[350931500,1738213839015,-151.0,0.00016438,2]
[350931501,1738213839025,-500.0,0.00016438,2]
[350931502,1738213839034,-500.0,0.00016438,2]
[350931503,1738213839044,-503.58914903,0.00016438,2]
[350931504,1738213839053,-533.16575531,0.00016438,2]
[350931505,1738213839063,-501.71015634,0.00016438,2]
[350931506,1738213839072,-151.0,0.00016438,2]
[350931507,1738213839082,-503.76388527,0.00016438,2]
[350931508,1738213839091,-501.37473678,0.00016438,2]
[350931509,1738213839102,-151.0,0.00016438,2]
[350931510,1738213839112,-500.0,0.00016438,2]
[350931511,1738213839121,-500.0,0.00016438,2]
[350931512,1738213839132,-168.391453,0.00016438,2]
[350931513,1738213839141,-168.391453,0.00016438,2]
[350931514,1738213839150,-168.391453,0.00016438,2]
[350931515,1738213839159,-500.0,0.00016438,2]
[350931516,1738213839169,-168.391453,0.00016438,2]
[350931517,1738213839178,-304.19026539,0.00016438,2]
[350931573,1738213844139,-195.80973461,0.00016438,2]
[350931574,1738213844149,-502.23045844,0.00016438,2]
[350931575,1738213844159,-210.28229924,0.00016438,2]
[350931576,1738213844168,-500.0,0.00016438,2]
[350931577,1738213844177,-291.06130914,0.00016438,2]
[350931578,1738213844187,-500.0,0.00016438,2]
[350931579,1738213844197,-500.0,0.00016438,2]
[350931580,1738213844207,-500.0,0.00016438,2]
[350931581,1738213844217,-500.0,0.00016438,2]
[350931582,1738213844226,-501.52411572,0.00016438,2]
[350931583,1738213844236,-500.0,0.00016438,2]
[350931584,1738213844245,-592.60067791,0.00016438,2]
[350931585,1738213844255,-500.0,0.00016438,2]
[350931586,1738213844264,-500.99787761,0.00016438,2]
[350931587,1738213844390,-355.38779372,0.00016438,2]
[350931588,1738213844401,-646.05612578,0.00016438,2]
[350931589,1738213844411,-151.0,0.00016438,2]
[350931590,1738213844420,-536.72426189,0.00016438,2]
[350931591,1738213844429,-151.0,0.00016438,2]
[350931592,1738213844439,-151.0,0.00016438,2]
[350931593,1738213844448,-151.0,0.00016438,2]
[350931594,1738213844458,-500.0,0.00016438,2]
[350931595,1738213844468,-501.82506074,0.00016438,2]
[350931596,1738213844478,-500.0,0.00016438,2]
[350931597,1738213844487,-500.0,0.00016438,2]
[350931598,1738213844496,-500.0,0.00016438,2]
[350931599,1738213844506,-151.0,0.00016438,2]
[350931600,1738213844516,-510.05179015,0.00016438,2]
[350931601,1738213844526,-151.0,0.00016438,2]
[350931602,1738213844535,-500.0,0.00016438,2]
[350931603,1738213844545,-500.0,0.00016438,2]
[350931604,1738213844555,-500.0,0.00016438,2]
[350931605,1738213844564,-500.76857585,0.00016438,2]
[350931606,1738213844573,-500.0,0.00016438,2]
[350931607,1738213844583,-500.0,0.00016438,2]
[350931608,1738213844592,-500.0,0.00016438,2]
[350931609,1738213844602,-500.88298839,0.00016438,2]
[350931610,1738213844611,-500.0,0.00016438,2]
[350931611,1738213844621,-503.06860697,0.00016438,2]
[350931612,1738213844630,-500.0,0.00016438,2]
[350931613,1738213844639,-500.0,0.00016438,2]
[350931614,1738213844649,-500.77926189,0.00016438,2]
[350931615,1738213844658,-500.0,0.00016438,2]
[350931616,1738213844667,-500.0,0.00016438,2]
[350931617,1738213844676,-500.0,0.00016438,2]
[350931618,1738213844686,-500.0,0.00016438,2]
[350931619,1738213844695,-502.28164588,0.00016438,2]
[350931620,1738213844704,-263.00369167,0.00016438,2]
[350931621,1738213844722,-236.99630833,0.00016438,2]
[350931622,1738213844731,-242.39769167,0.00016438,2]
[350931633,1738213846253,-258.56612356,0.00016438,2]
[350931634,1738213846263,-72.70071244,0.00016438,2]
[350931635,1738213846275,-427.29928756,0.00016438,2]
[350931636,1738213846286,-500.0,0.00016438,2]
[350931637,1738213846295,-151.0,0.00016438,2]
[350931638,1738213846306,-151.0,0.00016438,2]
[350931639,1738213846316,-500.0,0.00016438,2]
[350931640,1738213846325,-500.0,0.00016438,2]
[350931641,1738213846335,-500.0,0.00016438,2]
[350931642,1738213846345,-503.08736944,0.00016438,2]
[350931643,1738213846354,-500.0,0.00016438,2]
[350931644,1738213846363,-500.67532889,0.00016438,2]
[350931645,1738213846372,-500.0,0.00016438,2]
[350931647,1738213846382,-501.34358504,0.00016438,2]
[350931649,1738213846391,-500.0,0.00016438,2]
[350931650,1738213846400,-501.75307465,0.00016438,2]
[350931651,1738213846409,-500.0,0.00016438,2]
[350931652,1738213846419,-500.0,0.00016438,2]
[350931653,1738213846428,-500.0,0.00016438,2]
[350931654,1738213846437,-500.0,0.00016438,2]
[350931655,1738213846447,-500.0,0.00016438,2]
[350931656,1738213846466,-500.0,0.00016438,2]
[350931657,1738213846488,-500.0,0.00016438,2]
[350931658,1738213846500,-500.0,0.00016438,2]
[350931659,1738213846510,-500.0,0.00016438,2]
[350931660,1738213846520,-500.0,0.00016438,2]
[350931661,1738213846531,-501.4488036,0.00016438,2]
[350931662,1738213846541,-500.74032851,0.00016438,2]
[350931663,1738213846550,-500.0,0.00016438,2]
[350931664,1738213846560,-521.26916407,0.00016438,2]
[350931665,1738213846569,-502.43059348,0.00016438,2]
[350931666,1738213846582,-501.6055711,0.00016438,2]
[350931667,1738213846601,-501.00922328,0.00016438,2]
[350931668,1738213846611,-500.0,0.00016438,2]
[350931669,1738213846621,-502.22330662,0.00016438,2]
[350931670,1738213846631,-339.37298378,0.00016438,2]
[350931671,1738213846640,-500.0,0.00016438,2]
[350931672,1738213846651,-500.0,0.00016438,2]
[350931673,1738213846661,-500.0,0.00016438,2]
[350931674,1738213846670,-500.0,0.00016438,2]
[350931675,1738213846679,-500.0,0.00016438,2]
[350931676,1738213846688,-503.0628204,0.00016438,2]
[350931677,1738213846698,-747.18,0.00016438,2]
[350931678,1738213846707,-500.0,0.00016438,2]
[350931679,1738213846717,-500.0,0.00016438,2]
[350931680,1738213846727,-500.0,0.00016438,2]
[350931681,1738213846737,-500.0,0.00016438,2]
[350931682,1738213846746,-500.0,0.00016438,2]
[350931683,1738213846756,-500.0,0.00016438,2]
[350931684,1738213846765,-503.23743931,0.00016438,2]
[350931685,1738213846774,-500.0,0.00016438,2]
[350931686,1738213846783,-500.0,0.00016438,2]
[350931687,1738213846793,-315.9466291,0.00016438,2]
[350931688,1738213846803,-500.0,0.00016438,2]
[350931689,1738213846813,-500.0,0.00016438,2]
[350931690,1738213846822,-200.0,0.00016438,2]
[350931691,1738213846832,-500.0,0.00016438,2]
[350931692,1738213846842,-500.0,0.00016438,2]
[350931693,1738213846851,-500.0,0.00016438,2]
[350931694,1738213846861,-501.72600221,0.00016438,2]
[350931695,1738213846872,-500.0,0.00016438,2]
[350931696,1738213846885,-500.0,0.00016438,2]
[350931697,1738213846894,-500.0,0.00016438,2]
[350931698,1738213846903,-500.0,0.00016438,2]
[350931699,1738213846914,-500.0,0.00016438,2]
[350931700,1738213846925,-594.79369469,0.00016438,2]
[350931701,1738213846935,-500.0,0.00016438,2]
[350931702,1738213846946,-500.0,0.00016438,2]
[350931703,1738213846955,-500.0,0.00016438,2]
[350931704,1738213846966,-500.6441419,0.00016438,2]
[350931705,1738213846976,-500.0,0.00016438,2]
[350931706,1738213846985,-151.0,0.00016438,2]
[350931707,1738213846995,-500.0,0.00016438,2]
[350931708,1738213847004,-500.0,0.00016438,2]
[350931709,1738213847013,-440.88048402,0.00016438,2]
[350931710,1738213847032,-59.11951598,0.00016438,2]
[350931711,1738213847042,-501.11774906,0.00016438,2]
[350931712,1738213847052,-500.0,0.00016438,2]
[350931713,1738213847062,-500.0,0.00016438,2]
[350931714,1738213847071,-500.0,0.00016438,2]
[350931715,1738213847081,-500.0,0.00016438,2]
[350931716,1738213847090,-500.0,0.00016438,2]
[350931717,1738213847100,-500.0,0.00016438,2]
[350931718,1738213847110,-500.0,0.00016438,2]
[350931719,1738213847120,-38.39425474,0.00016438,2]
[350931720,1738213847132,-461.60574526,0.00016438,2]
[350931721,1738213847143,-500.0,0.00016438,2]
[350931722,1738213847153,-500.0,0.00016438,2]
[350931723,1738213847162,-500.0,0.00016438,2]
[350931724,1738213847172,-500.0,0.00016438,2]
[350931725,1738213847181,-500.0,0.00016438,2]
[350931726,1738213847191,-500.0,0.00016438,2]
[350931727,1738213847200,-500.0,0.00016438,2]
[350931728,1738213847210,-500.0,0.00016438,2]
[350931729,1738213847220,-503.73488712,0.00016438,2]
[350931730,1738213847230,-500.0,0.00016438,2]
[350931731,1738213847239,-503.77510447,0.00016438,2]
[350931732,1738213847248,-500.0,0.00016438,2]
[350931733,1738213847258,-500.0,0.00016438,2]
[350931734,1738213847267,-151.0,0.00016438,2]
[350931735,1738213847276,-151.0,0.00016438,2]
[350931736,1738213847286,-417.07489223,0.00016438,2]
[350931737,1738213847295,-500.0,0.00016438,2]
[350931738,1738213847304,-353.34417775,0.00016438,2]
[350931748,1738214005822,317.593543,0.00013973,2]
[350931749,1738214344519,500.0,0.00014166,2]
[350931750,1738214548995,168.475967,0.00013699,2]
[350931754,1738214736291,-4136.94016884,0.00015329,2]
[350931755,1738214736313,-300.0,0.00015484,2]
[350931756,1738214736335,-62.00640467,0.00015485,2]
[350931759,1738214879180,326.701507,0.00013973,2]
[350931850,1738215038340,-855.89347961,0.00015375,2]
[350931851,1738215038354,-1088.31219625,0.00015375,2]
[350931852,1738215038421,-1540.28423873,0.00015375,2]
[350931853,1738215038433,-5364.70095981,0.00015375,2]
[350931854,1738215038442,-300.0,0.00015484,2]
[350931855,1738215038452,-5414.73613613,0.00015485,2]
[350931857,1738215038461,-154.8915759,0.00015485,2]
[350931859,1738215038470,-6202.35476468,0.000155,2]
[350931860,1738215038478,-425.31459526,0.00016215,2]
[350931861,1738215038487,-425.31459523,0.00016246,2]
[350931862,1738215038496,-214.0806589,0.0001626,2]
[350931863,1738215038506,-425.31459523,0.00016277,2]
[350931864,1738215038516,-38962.97854644,0.000163,2]
[350931865,1738215038526,-425.31459523,0.00016307,2]
[350931866,1738215038535,-13245.59911628,0.00016315,2]
[350931867,1738215038544,-425.31459523,0.00016338,2]
[350931868,1738215038553,-151.0,0.000164,2]
[350931869,1738215038563,-6021.34103953,0.00016414,2]
[350931870,1738215038573,-500.0,0.00016437,2]
[350931871,1738215038583,-434.15172471,0.00016437,2]
[350931872,1738215038594,-196.04299133,0.00016437,2]
[350931873,1738215038603,-151.0,0.00016437,2]
[350931874,1738215038615,-500.0,0.00016437,2]
[350931875,1738215038626,-500.0,0.00016437,2]
[350931876,1738215038636,-500.0,0.00016437,2]
[350931877,1738215038646,-500.0,0.00016437,2]
[350931878,1738215038657,-500.0,0.00016437,2]
[350931879,1738215038666,-500.0,0.00016437,2]
[350931880,1738215038675,-500.0,0.00016437,2]
[350931881,1738215038684,-558.90574243,0.00016437,2]
[350931882,1738215038693,-297.0,0.00016437,2]
[350931883,1738215038702,-500.0,0.00016437,2]
[350931884,1738215038711,-500.0,0.00016437,2]
[350931885,1738215038720,-500.0,0.00016437,2]
[350931886,1738215038729,-208.3848226,0.00016437,2]
[350931887,1738215038738,-500.0,0.00016437,2]
[350931888,1738215038747,-500.0,0.00016437,2]
[350931889,1738215038756,-500.0,0.00016437,2]
[350931890,1738215038766,-500.0,0.00016437,2]
[350931891,1738215038774,-225.52475805,0.00016437,2]
[350931892,1738215038783,-500.0,0.00016437,2]
[350931893,1738215038793,-500.0,0.00016437,2]
[350931894,1738215038802,-500.0,0.00016437,2]
[350931895,1738215038811,-500.0,0.00016437,2]
[350931896,1738215038820,-336.45921156,0.00016437,2]
[350931897,1738215038829,-500.0,0.00016437,2]
[350931898,1738215038838,-500.0,0.00016437,2]
[350931899,1738215038847,-500.0,0.00016437,2]
[350931900,1738215038856,-500.0,0.00016437,2]
[350931901,1738215038865,-500.0,0.00016437,2]